Cogmind - Beta 11.1 @@@ ROGUE MODE // 2022.04.22 @ 12:50:31 Player: Jamuson Result: Destroyed by B-75 Beast with Magnetic Acceleration Cannon Performance ------------- Evolutions (3) 1500 Regions Visited (7) 1400 Robots Destroyed (103) 515 Value Destroyed (3813) 3813 Prototype IDs (5) 100 Alien Tech Used (0) 0 Bonus (697) 697 TOTAL SCORE: 8025 Bonus ------- High Alert Combat Kills 397 Aligned with FarCom 300 Cogmind --------- Core Integrity 0/700 Matter 253/300 Energy 347/500 System Corruption 3% Temperature Cool (0) Movement Treading (166) Location -7/Lower Caves Parts ------- > --- POWER (1) -------- (None) > --- PROPULSION (3) --- Armored Treads Armored Treads Medium Treads > --- UTILITY (6) ------ Compact Battery Compact Battery Core Analyzer Armor Integrity Analyzer Microactuators > --- WEAPON (3) ------- Chainsword Longsword +1 > --- INVENTORY (5) ---- Gravmag System Cooled Airjet Compact Battery (200) Force Booster Reaction Control System Peak State ------------ > --- POWER ------------ (None) > --- PROPULSION ------- Armored Treads Armored Treads Medium Treads > --- UTILITY ---------- Active Sensor Suite Core Analyzer Armor Integrity Analyzer Microactuators > --- WEAPON ----------- Chainsword Longsword +1 > --- INVENTORY -------- Gravmag System Cooled Airjet Compact Battery Force Booster Reaction Control System [Rating: 62] Favorites ----------- Power Deuterium Engine Engine Deuterium Engine Power Core Light Nuclear Core Propulsion Light Treads Treads Light Treads Wheel Wheel Hover Unit Cooled Airjet Utility Large Storage Unit Device Microactuators Storage Large Storage Unit Processor Improved Melee Analysis Suite Protection Improved Utility Shielding Weapon Chainsword Energy Gun EM Pulse Gun Ballistic Gun Assault Rifle Launcher Missile Launcher Slashing Weapon Chainsword Piercing Weapon Spear Build | -11 -10 -10 -10 -9 -8 -7 -7 ------- Run | Scr Mat Min Exi Min Mat Fac Low Slots Evolved 6 | . . . . . 4 2 . Power . | . . . . . . . . Propulsion 1 | . . . . . 1 . . Utility 4 | . . . . . 3 1 . Weapon 1 | . . . . . . 1 . Parts Attached 127 | 7 8 . 2 . 42 66 2 Power 10 | 2 1 . . . 3 4 . Engine 8 | 2 1 . . . 3 2 . Core 2 | . . . . . . 2 . Reactor . | . . . . . . . . Propulsion 24 | 2 . . . . 6 16 . Treads 10 | 2 . . . . 4 4 . Leg . | . . . . . . . . Wheel 9 | . . . . . 2 7 . Hover 5 | . . . . . . 5 . Flight . | . . . . . . . . Utility 36 | 1 2 . . . 7 24 2 Device 11 | . . . . . 2 9 . Storage 6 | 1 2 . . . . 1 2 Processor 4 | . . . . . . 4 . Hackware . | . . . . . . . . Protection 15 | . . . . . 5 10 . Artifact . | . . . . . . . . Weapon 57 | 2 5 . 2 . 26 22 . Energy Gun 25 | 1 4 . 1 . 14 5 . Energy Cannon . | . . . . . . . . Ballistic Gun 1 | 1 . . . . . . . Ballistic Cannon . | . . . . . . . . Launcher 5 | . 1 . . . 3 1 . Special Weapon . | . . . . . . . . Impact Weapon . | . . . . . . . . Slashing Weapon 24 | . . . 1 . 9 14 . Piercing Weapon 2 | . . . . . . 2 . Special Melee Weapon . | . . . . . . . . Unidentified Prototypes 5 | . . . 1 . 2 2 . Parts Lost 26 | . 1 . . . 6 19 . Power 2 | . . . . . . 2 . Propulsion 10 | . . . . . 2 8 . Utility 9 | . . . . . 2 7 . Weapon 5 | . 1 . . . 2 2 . Highest Loss Streak 10 | . 1 . . . 4 10 . To Critical Strikes . | . . . . . . . . Average Slot Usage (%) 85 | . 85 85 85 85 84 86 67 Engine 7 | . 14 14 14 14 9 5 . Treads 12 | . 28 28 28 28 22 1 23 Wheel 7 | . . . . . 2 13 . Device 10 | . . . . . 7 16 7 Storage 8 | . 14 14 14 14 9 6 6 Processor 2 | . . . . . . 4 15 Protection 12 | . . . . . 15 15 . Energy Gun 9 | . 24 28 27 28 13 1 . Slashing Weapon 9 | . . . . . 3 16 15 Naked Turns . | . . . . . . . . Heaviest Build 80 | 14 29 29 30 29 49 80 10 Greatest Support 68 | 40 40 40 40 40 60 68 68 Greatest Overweight (x) 3 | . . . . . 2 3 . Average Overweight (x) . | . . . . . . 1 . Largest Inventory Capacity 15 | 8 15 15 15 15 15 15 5 Average Capacity 13 | 7 10 15 15 15 15 13 5 Most Carried 15 | 6 9 9 10 9 15 15 5 Average Carried 11 | 3 6 8 9 9 11 13 5 Final Capacity 15 | 8 15 15 15 15 15 5 5 Final Carried 12 | 6 8 9 9 9 12 5 5 Class Distribution -------------------- 82% | Mutant 11% | Gladiator 4% | Scavenger-Mutant Dominant Class ---------------- Mutant | -10/Materials Mutant | -10/Mines Mutant | -10/Exiles Mutant | -9/Mines Mutant | -8/Materials Mutant | -7/Factory Scavenger-Mutant | -7/Lower Caves Resources | -11 -10 -10 -10 -9 -8 -7 -7 ----------- Run | Scr Mat Min Exi Min Mat Fac Low Matter Collected 1574 | 247 138 . . 27 359 785 18 Remotely . | . . . . . . . . Salvage Created 4361 | . 839 . . . 1197 2325 . Parts 275 | . 50 . . . 77 148 . Haulers Intercepted 5 | . 1 . . . 2 2 . Recyclers Shooed . | . . . . . . . . Parts Field Recycled . | . . . . . . . . Retrieved Matter . | . . . . . . . . Parts Self-Destructed . | . . . . . . . . Prevented . | . . . . . . . . Kills | -11 -10 -10 -10 -9 -8 -7 -7 ------- Run | Scr Mat Min Exi Min Mat Fac Low Combat Hostiles Destroyed 84 | . 17 . . . 27 40 . Melee 48 | . . . . . 10 38 . Guns 17 | . 11 . . . 6 . . AOE 17 | . 6 . . . 10 1 . Classes Destroyed 14 | . 5 . . . 3 6 . Worker 2 | . . . . . 2 . . Tunneler 1 | . 1 . . . . . . Hauler 5 | . 1 . . . 2 2 . Carrier 1 | . . . . . . 1 . Watcher 10 | . 3 . . . 4 3 . Swarmer 17 | . 3 . . . 11 3 . Cutter 2 | . . . . . . 2 . Grunt 28 | . 14 . . . 9 5 . Protector 1 | . . . . . . 1 . Sentry 10 | . . . . . 6 4 . Specialist 10 | . . . . . . 10 . Hunter 3 | . . . . . 1 2 . Programmer 12 | . . . . . . 12 . Heavy 1 | . . . . . . 1 . Best Kill Streak 5 | . 5 . . . 5 5 . Combat Bots Only 5 | . 3 . . . 5 5 . Max Kills in Single Turn 4 | . 2 . . . 4 1 . Gunslinging . | . . . . . . . . Exploded 4 | . 2 . . . 4 1 . Melee 1 | . . . . . 1 1 . Uniques/NPCs Destroyed . | . . . . . . . . Combat | -11 -10 -10 -10 -9 -8 -7 -7 -------- Run | Scr Mat Min Exi Min Mat Fac Low Damage Taken 4679 | . 359 . . . 1044 3060 216 Core 904 | . 56 . . . 124 677 47 Absorbed by Shields 770 | . . . . . 252 518 . Redirected to Shielding 72 | . . . . . 47 25 . Core Remaining (%) 84 | 100 . . . 77 77 . . Volleys Fired 121 | . 53 . . . 60 8 . Largest 3 | . 2 . . . 2 3 . Hottest 120 | . 80 . . . 110 120 . Shots Fired 230 | . 106 . . . 104 20 . Gun 219 | . 104 . . . 97 18 . Cannon . | . . . . . . . . Launcher 11 | . 2 . . . 7 2 . Special . | . . . . . . . . Kinetic 10 | . 10 . . . . . . Thermal 29 | . 10 . . . 19 . . Explosive 11 | . 2 . . . 7 2 . Electromagnetic 180 | . 84 . . . 78 18 . Robot Hit Streak 12 | . 7 . . . 12 7 . Robot Miss Streak 6 | . 6 . . . 4 1 . Penetration Max . | . . . . . . . . Secondary Targets 2 | . 1 . . . 1 . . Max Gunslinging Chain 1 | . 1 . . . 1 . . Shots Hit Robots 314 | . 61 . . . 97 156 . Core Hits 140 | . 35 . . . 45 60 . Critical Kills . | . . . . . . . . Critical Parts Destroyed . | . . . . . . . . Critical Strikes 18 | . . . . . 2 16 . Sever 14 | . . . . . 2 12 . Impale 4 | . . . . . . 4 . Melee Attacks 237 | . . . . . 50 187 . Impact . | . . . . . . . . Slashing 209 | . . . . . 50 159 . Piercing 28 | . . . . . . 28 . Sneak Attacks 8 | . . . . . 3 5 . Combat Hostiles 1 | . . . . . . 1 . Follow-up Attacks 34 | . . . . . . 34 . Damage Inflicted 10165 | . 1145 . . . 3450 5570 . Guns 2226 | . 840 . . . 1216 170 . Cannons . | . . . . . . . . Explosions 1335 | . 305 . . . 869 161 . Melee 6580 | . . . . . 1341 5239 . Ramming 24 | . . . . . 24 . . Kinetic 101 | . 101 . . . . . . Thermal 753 | . 218 . . . 466 69 . Explosive 934 | . 137 . . . 705 92 . Electromagnetic 1773 | . 689 . . . 914 170 . Impact . | . . . . . . . . Slashing 5897 | . . . . . 1341 4556 . Piercing 683 | . . . . . . 683 . Highest Corruption 4 | . . . . . . 4 3 Average Corruption 2 | . . . . . . 2 3 Corruption Purged 4 | . . . . . . 4 . Corruption Blocked . | . . . . . . . . Effects 45 | . . . . . . 41 4 Message Errors 13 | . . . . . . 11 2 Matter Fused 12 | . . . . . . 11 1 Heat Flow Errors 10 | . . . . . . 9 1 Energy Discharges 2 | . . . . . . 2 . Parts Rejected 1 | . . . . . . 1 . Data Loss (minor) 3 | . . . . . . 3 . Data Loss (major) 2 | . . . . . . 2 . Alerts 2 | . . . . . . 2 . Overload Shots . | . . . . . . . . Overflow Damage 312 | . . . . . 122 190 . Projectiles . | . . . . . . . . Explosions 53 | . . . . . 53 . . Melee 259 | . . . . . 69 190 . Knockbacks . | . . . . . . . . Impact . | . . . . . . . . Kinetic . | . . . . . . . . Secondary . | . . . . . . . . Self-Inflicted Damage 132 | . 38 . . . 54 40 . Shots 5 | . 1 . . . 3 1 . Rammed 8 | . . . . . 8 . . Targets Rammed 8 | . . . . . 8 . . Kicked . | . . . . . . . . Crushed . | . . . . . . . . Highest Temperature 438 | . 180 . . . 438 261 111 Average Temperature 76 | . 47 . . . 107 74 63 Received Heat Transfer 1045 | . 168 . . . 442 411 24 Effects 2 | . . . . . 2 . . Shutdowns 1 | . . . . . 1 . . Energy Bleed 1 | . . . . . 1 . . Siege Activations . | . . . . . . . . Robots Corrupted 2 | . . . . . 1 1 . Combat Hostiles 2 | . . . . . 1 1 . Parts Fried 8 | . 3 . . . 4 1 . Impact Corruptions . | . . . . . . . . Robots Melted . | . . . . . . . . Combat Hostiles . | . . . . . . . . Parts Melted 2 | . . . . . 2 . . Heat Transferred 1290 | . 398 . . . 842 50 . Parts Sabotaged . | . . . . . . . . Parts Stolen . | . . . . . . . . Parts Stripped . | . . . . . . . . Power Chain Reactions 6 | . 2 . . . 3 1 . Missiles Intercepted . | . . . . . . . . Alert | -11 -10 -10 -10 -9 -8 -7 -7 ------- Run | Scr Mat Min Exi Min Mat Fac Low Peak Influence 972 | . 312 18 . . 671 972 . Initial 305 | . . 18 . . . 305 . Average 305 | . 136 18 . . 267 378 . Maximum Alert Level 3 | . 1 . . . 2 3 . Low Security (%) 46 | 100 69 100 . 100 46 39 . Level 1 20 | . 30 . . . 15 23 . Level 2 26 | . . . . . 38 26 . Level 3 5 | . . . . . . 10 . Level 4 . | . . . . . . . . Level 5 . | . . . . . . . . High Security . | . . . . . . . . Max Security . | . . . . . . . . Squads Dispatched 43 | . 6 . . . 7 30 . Investigation 9 | . 3 . . . 4 2 . Extermination 10 | . . . . . . 10 . Reinforcement 22 | . 3 . . . 2 17 . Assault 2 | . . . . . 1 1 . Garrison . | . . . . . . . . Intercept . | . . . . . . . . Searches Triggered . | . . . . . . . . Construction Impeded 1 | . . . . . 1 . . Haulers Reinforced 1 | . . . . . . 1 . Active Scanning Responses . | . . . . . . . . Cargo Convoy Interrupts 1 | . . . . . . 1 . Stealth | -11 -10 -10 -10 -9 -8 -7 -7 --------- Run | Scr Mat Min Exi Min Mat Fac Low Distress Signals 5 | . . . . . 2 3 . Communications Jammed . | . . . . . . . . Distress Signals . | . . . . . . . . Times Spotted 143 | . 30 . . . 36 76 1 Peak Tracking Total 10 | . 4 . . . 5 10 1 Tactical Retreats 18 | . 1 . . . 4 13 . Traps | -11 -10 -10 -10 -9 -8 -7 -7 ------- Run | Scr Mat Min Exi Min Mat Fac Low Traps Triggered 5 | . 1 . . . 2 2 . Indirectly . | . . . . . . . . Trap Hack Attempts . | . . . . . . . . Triggered . | . . . . . . . . Disarmed . | . . . . . . . . Reprogrammed . | . . . . . . . . Reused . | . . . . . . . . Traps Extracted . | . . . . . . . . Installed . | . . . . . . . . Triggered 4 | . 1 . . . 1 1 1 Machines | -11 -10 -10 -10 -9 -8 -7 -7 ---------- Run | Scr Mat Min Exi Min Mat Fac Low Machines Disabled 4 | . 1 . . . 3 . . Max in Single Turn 1 | . 1 . . . 1 . . Garrison Access 1 | . . . . . . 1 . Machines Sabotaged . | . . . . . . . . Garrisons Compromised . | . . . . . . . . Overloaded Fab Kills . | . . . . . . . . Hacking | -11 -10 -10 -10 -9 -8 -7 -7 --------- Run | Scr Mat Min Exi Min Mat Fac Low Machines Accessed 20 | . 3 . . . 7 10 . Terminals 20 | . 3 . . . 7 10 . Fabricators . | . . . . . . . . Repair Stations . | . . . . . . . . Recycling Units . | . . . . . . . . Scanalyzers . | . . . . . . . . Garrison Access . | . . . . . . . . Total Hacks 66 | . 17 . . . 23 26 . Successful 30 | . 12 . . . 13 5 . Failed 36 | . 5 . . . 10 21 . Catastrophic 6 | . 2 . . . 1 3 . Database Lockouts . | . . . . . . . . Manual 40 | . 8 . 1 . 16 15 . Terminals 66 | . 17 . . . 23 26 . Fabricators . | . . . . . . . . Repair Stations . | . . . . . . . . Recycling Units . | . . . . . . . . Scanalyzers . | . . . . . . . . Garrison Access . | . . . . . . . . Terminal Hacks 20 | . 9 . . . 8 3 . Record 1 | . . . . . 1 . . Open DSF 3 | . . . . . . 3 . Level Access Points 1 | . 1 . . . . . . Branch Access Points 1 | . 1 . . . . . . Terminal Index 2 | . 1 . . . 1 . . Alert Level 4 | . 3 . . . 1 . . Unreport Threat 3 | . 2 . . . 1 . . Locate Traps 1 | . . . . . 1 . . Maintenance Status 1 | . . . . . 1 . . Assault Status 1 | . . . . . 1 . . Hauler Manifests 2 | . 1 . . . 1 . . Fabricator Hacks . | . . . . . . . . Repair Station Hacks . | . . . . . . . . Recycling Unit Hacks . | . . . . . . . . Scanalyzer . | . . . . . . . . Garrison Access Hacks . | . . . . . . . . Unauthorized Hacks 10 | . 3 . . . 5 2 . Terminals 10 | . 3 . . . 5 2 . Assimilate 1 | . . . . . 1 . . Botnet 9 | . 3 . . . 4 2 . Fabricators . | . . . . . . . . Repair Stations . | . . . . . . . . Recycling Units . | . . . . . . . . Scanalyzers . | . . . . . . . . Garrison Access . | . . . . . . . . Data Cores Recovered . | . . . . . . . . Used . | . . . . . . . . Hacking Detections 17 | . 2 . . . 6 9 . Full Trace Events 3 | . 1 . . . 1 1 . Feedback Events . | . . . . . . . . Feedback Blocked . | . . . . . . . . Robot Schematics Acquired . | . . . . . . . . Robots Built . | . . . . . . . . Authchips . | . . . . . . . . Time . | . . . . . . . . Total Robot Build Rating . | . . . . . . . . Part Schematics Acquired . | . . . . . . . . Parts Built . | . . . . . . . . Authchips . | . . . . . . . . Time . | . . . . . . . . Total Part Build Rating . | . . . . . . . . Parts Repaired . | . . . . . . . . Time . | . . . . . . . . Parts Recycled . | . . . . . . . . Recycled Matter . | . . . . . . . . Retrieved Matter . | . . . . . . . . Retrieved Components . | . . . . . . . . Parts Scanalyzed . | . . . . . . . . Part Schematics Acquired . | . . . . . . . . Parts Damaged . | . . . . . . . . Bothacking | -11 -10 -10 -10 -9 -8 -7 -7 ------------ Run | Scr Mat Min Exi Min Mat Fac Low Used RIF Installer . | . . . . . . . . Robots Hacked . | . . . . . . . . Non-combat . | . . . . . . . . Combat . | . . . . . . . . Robot Hacks Applied . | . . . . . . . . Relay Couplers Released 1 | . . . . . . 1 . Machine Destruction 1 | . . . . . . 1 . Fabnet Peak Effective % . | . . . . . . . . Robots Rewired . | . . . . . . . . Allies Hacked . | . . . . . . . . Hacks Repelled . | . . . . . . . . Allies | -11 -10 -10 -10 -9 -8 -7 -7 -------- Run | Scr Mat Min Exi Min Mat Fac Low Total Allies . | . . . . . . . . Largest Group . | . . . . . . . . Highest-Rated Group . | . . . . . . . . Highest-Rated Ally . | . . . . . . . . Total Orders . | . . . . . . . . Ally Attacks . | . . . . . . . . Total Damage . | . . . . . . . . Kills . | . . . . . . . . Allies Corrupted . | . . . . . . . . Allies Melted . | . . . . . . . . Intel | -11 -10 -10 -10 -9 -8 -7 -7 ------- Run | Scr Mat Min Exi Min Mat Fac Low Robot Analysis Total . | . . . . . . . . Derelict Logs Recovered 1 | . . . . 1 . . . Drone Launches . | . . . . . . . . Drone Recoveries . | . . . . . . . . Exploration | -11 -10 -10 -10 -9 -8 -7 -7 ------------- Run | Scr Mat Min Exi Min Mat Fac Low Turns Passed 10115 | 75 959 72 435 207 2928 5210 229 Spaces Moved 6008 | 40 475 45 270 130 1227 3685 136 Core 210 | 3 . . . . . 207 . Treads 2063 | 37 475 45 270 130 946 24 136 Legs . | . . . . . . . . Wheels 3382 | . . . . . 281 3101 . Hover 353 | . . . . . . 353 . Flight . | . . . . . . . . Fastest Speed 50 | 50 160 160 160 160 110 50 166 Average Speed 124 | 151 160 160 160 160 157 102 166 Slowest Speed 245 | 160 160 160 160 160 245 166 166 Overloaded Moves . | . . . . . . . . Propulsion Burnouts . | . . . . . . . . Robots Hopped . | . . . . . . . . Cave-ins Triggered . | . . . . . . . . Exploration Rate (%) 46 | 5 88 9 65 31 72 71 27 Regions Visited 7 Branch Regions 4 Pre-discovered Areas 1 | . . . . 1 . . . Known Exits Taken 2 | . 1 . . . . 1 . Unknown Exits Taken 5 | 1 . 1 1 1 1 . . Scrap Searched 2 | . . . . 1 . . 1 Spaces Dug 40 | . . . . . 33 7 . Terrain Destroyed 142 | . 26 . . . 101 15 . Melee 29 | . . . . . 22 7 . Projectile . | . . . . . . . . AOE 113 | . 26 . . . 79 8 . Terrain Rammed . | . . . . . . . . Walls Destroyed . | . . . . . . . . Machines Disabled . | . . . . . . . . Actions | -11 -10 -10 -10 -9 -8 -7 -7 --------- Run | Scr Mat Min Exi Min Mat Fac Low Total 8234 | 51 569 45 273 129 2050 4979 138 Wait 1666 | . 20 . . . 647 999 . Move 6001 | 39 474 44 269 129 1226 3684 136 Hop . | . . . . . . . . Pick Up 43 | 5 6 1 . . 7 24 . Fast Attach 48 | 6 4 . 1 . 9 26 2 Attach 25 | . 1 . . . 4 20 . Detach 15 | . . . 1 . 2 12 . Swap 54 | 1 3 . 1 . 29 20 . Drop 58 | . 8 . 1 . 8 41 . Fire 121 | . 53 . . . 60 8 . Melee 195 | . . . . . 50 145 . Ram . | . . . . . . . . Kick . | . . . . . . . . Crush 8 | . . . . . 8 . . Escape Stasis . | . . . . . . . . Rewire . | . . . . . . . . Trap . | . . . . . . . . Miscellaneous . | . . . . . . . . Route ------- -11/Scrapyard -10/Materials (discovered 5 exits: *Mat x3 / *Min x2) -10/Mines -10/Exiles -9/Mines -8/Materials -7/Factory (discovered 3 exits: [*Sto] / *Low x2) -7/Lower Caves History --------- Turn | Location | Event 31 | -11/Scrapyard | Discovered new exit (range 16) 76 | -11/Scrapyard | Entered Materials 132 | -10/Materials | Discovered new exit (range 7) 327 | -10/Materials | Build established: Mutant 535 | -10/Materials | Discovered new exit (range 8) 648 | -10/Materials | Discovered new exit (range 7) 706 | -10/Materials | Identified exit to Mines 706 | -10/Materials | Identified exit to Materials 1035 | -10/Materials | Entered Mines 1042 | -10/Mines | Received a Rocket Launcher from a helpful Derelict 1099 | -10/Mines | Deemed a non-threat by the Exiles lab entrance 1100 | -10/Mines | Discovered new exit (range 5) 1107 | -10/Mines | Entered Exiles 1152 | -10/Exiles | Met 8R-AWN 1179 | -10/Exiles | Met EX-HEX 1229 | -10/Exiles | Met EX-BIN 1247 | -10/Exiles | Aligned with FarCom system 1248 | -10/Exiles | Given EX-Vault access code 1285 | -10/Exiles | Opened EX-Vault 1295 | -10/Exiles | Found Prototype Slashing Weapon 1295 | -10/Exiles | Identified Longsword +1 1333 | -10/Exiles | Warned to stay clear of 0b10 Research branches 1354 | -10/Exiles | Exiles lab attacked by MAIN.C 1462 | -10/Exiles | Discovered new exit (range 12) 1542 | -10/Exiles | Left Exiles lab with Longsword +1 1542 | -10/Exiles | Entered Mines 1571 | -9/Mines | Learned location of Zion (-6) 1707 | -9/Mines | Discovered new exit (range 8) 1749 | -9/Mines | Entered Materials 1749 | -8/Materials | Evolved 4 slots: Propulsion x1, Utility x3 3965 | -8/Materials | Lost 4 parts (2n2w) 4071 | -8/Materials | Discovered new exit (range 16) 4549 | -8/Materials | First assault squad dispatched 4677 | -8/Materials | Entered Factory 4677 | -7/Factory | Evolved 2 slots: Utility x1, Weapon x1 5149 | -7/Factory | Discovered new exit (range 5) 5506 | -7/Factory | Discovered new exit (range 4) 6501 | -7/Factory | Cargo convoy interrupted 8379 | -7/Factory | Build established: Gladiator 9308 | -7/Factory | Core integrity fell below 50% 9337 | -7/Factory | Lost 10 parts (1p3n4u2w) 9568 | -7/Factory | Build established: Mutant 9829 | -7/Factory | Discovered new exit (range 5) 9841 | -7/Factory | Core integrity fell below 20% 9857 | -7/Factory | Found Prototype Device 9862 | -7/Factory | Lost 4 parts (1p2n1u) 9865 | -7/Factory | Identified Active Sensor Suite 9866 | -7/Factory | Identified exit to Lower Caves 9887 | -7/Factory | Entered Lower Caves 9944 | -7/Lower Caves | Build established: Scavenger-Mutant 10088 | -7/Lower Caves | Spotted B-75 Beast 10116 | -7/Lower Caves | Destroyed by B-75 Beast with Magnetic Acceleration Cannon Last Messages --------------- 09847_ Acquired 63 matter. 09851_ Acquired Arm. Treads. 09857_ Acquired Prototype Device. 09863_ Dropped Prototype Device. 09865_ Acquired Prototype Device. 09865_ Identified Active Sensor Suite. 09866_ EXIT=IDENTIFIED: LOWER CAVES 09866_ Discarded Active Sensor Suite. 09882_ U-05 Engineer builds a Wall. LOCATION=LOWER CAVES GOAL=ESCAPE 09939_ TJPFQJ OHH0IK2SNOIWL=OLXP|QLO 09999_ Searching scrap... 09999_ Found Com. Battery. 09999_ Found 18 Matter. 10000_ Acquired 18 matter. 10007_ System corrupted: Matter fused (-5). 10009_ Acquired Com. Battery. 10056_ PLTZ%Q0>OPXHH0T7VYU5RDT7LUHPC78H& 10100_ System corrupted: Heat flow error (+142). Map ----- +----------------------------------------------------+ | ?????????????????????????????????????????????????? | | ?????????????????????????????????????????????????? | | ?????????????????????????????????????????????????? | | ???????????????????????????????????????????????#?? | | ??????????????????????????????????????????????# # | | ?????????????????????????????????????????????? | | ????????????????????????????????????????###??? | | ??????????????????????????????????? #?## ### | | ?????????????????????????????????? ## | | ?????????????????????????????????? | | ????????????????????????????????? | | ????????????????????????????? ? ## | | ????????????????????????????? ?? " ## ? | | ???????????????????????????# " " ## ?? | | ???????????????????????????# "" " " " ## #?? | | ????????????????????????#??# "" " " ## #?? | | ?????????????????????? ? ?## " "" " ## #?? | | ?????????????????????? ## " """ ### | | ?????????????????????? " | | ?????????????????????? """""" | | ???????????????????????# " " # | | ????????????????????????# " # | | ???????????????????????## "" | | ???????????????????????#% """ " | | ?????????????????????### " "" | | ???????####?????????## @ " " ## | | ???????# ????????# " ## | | ???????# ???????## ##### | | ???????# ??#####; #????## | | ???????# ### ;;## ### #######?????? | | ???????# "" #### ##??????????? | | ???????# " ### #??????????? | | ????????????#" BB ##?????????? | | ????????????# BB %% ### ##????????? | | ????????????# #" ### #?# #????????? | | ????????????## "" # # ###?# #????????? | | ?????????????### " ## ###?### ##????????? | | ???????????????# # # # #???# #?????????? | | ???????????????# "" % #???# #?????????? | | ??????????????? # " ##### #?????????? | | ??????????????## #### ### #?????????? | | ???????????????# #?## #?????????? | | ???????????????######## #??## #######?????????? | | ??????????????????????# #???# #???????????????? | | ??????????????????????# #???# ##???????????????? | | ??????????????????????# ???####????????????????? | | ??????????????????????#? ????????????????????????? | | ?????????????????????????????????????????????????? | | ?????????????????????????????????????????????????? | | ?????????????????????????????????????????????????? | +----------------------------------------------------+ Best States ------------- Heat Dissipation 48 Energy Generation 18 Energy Capacity 500 Matter Stores 300 Matter Capacity 300 Sight Range 16 Terrain Scan Density 10 Armor Coverage 600 Resistance: KI 30 Utility Shielding 66 Melee Speed Boost 40 Evasion (%) 62 Targeting Accuracy 6 Melee Accuracy 6 Core Analysis 6 Armor Integrity Analysis 30 Recoil Reduction 3 Force Boost 20 Item Schematics ----------------- None Robot Schematics ------------------ None Fabricated ------------ Nothing Alien Tech Used ----------------- None Achievements -------------- None Challenges ------------ None Game ------ Seed TargetingPropulsionSpear Manual? 0 Play Time 02:45:03 Cumulative 129.0 hours Start 2022.04.22 @ 08:08:29 End 2022.04.22 @ 12:50:31 Sessions 1 Manual Loads 0 Difficulty Rogue Special Mode None Game No. 42 Rogue 35 Adventurer 0 Explorer 7 Win Type - Total 1 Types 0/0/1/0/0/0/0/0/0 Lore% 54 Gallery% 50 Achievement% 43 Wizard Run 0 Options --------- ASCII 0 Keyboard 0 Movement Numpad Keybinds 0 Fullscreen 1 Font 18/SmallcapsGlow Map View 76x50 Tactical HUD 1 Map Filters NONE Filters NONE Steam 1 RUN: 640aa421-cf99-48c8-bba7-610ba8838bf0